[Event "Championnat d'Europe de Blitz"]
[Date "2024.12.09"]
[White "Yuste Valenzuela, Alejandro"]
[Black "Gavrilescu, David"]
[WhiteElo "2150"]
[BlackElo "2549"]
[Round "3.39"]
[Result "0-1"]
[TimeControl "180+2"]

1. e4 {[%emt 00:00:02] [%clk 00:03:03]} c5 {[%emt 00:00:01] [%clk 00:03:03]} 2.
Nf3 {[%emt 00:00:02] [%clk 00:03:02]} a6 {[%emt 00:00:01] [%clk 00:03:04]} 3. d4
{[%emt 00:00:13] [%clk 00:02:50]} cxd4 {[%emt 00:00:01] [%clk 00:03:05]} 4. Nxd4
{[%emt 00:00:01] [%clk 00:02:51]} Nf6 {[%clk 00:03:06]} 5. Nc3 {[%emt 00:00:02]
[%clk 00:02:51]} e5 {[%emt 00:00:01] [%clk 00:03:06]} 6. Nb3 {[%emt 00:00:02]
[%clk 00:02:51]} Bb4 {[%emt 00:00:02] [%clk 00:03:07]} 7. Bd3 {[%emt 00:00:06]
[%clk 00:02:46]} d6 {[%emt 00:00:02] [%clk 00:03:08]} 8. O-O {[%emt 00:00:03]
[%clk 00:02:45]} Bxc3 {[%emt 00:00:02] [%clk 00:03:08]} 9. bxc3 {[%emt 00:00:01]
[%clk 00:02:46]} O-O {[%emt 00:00:03] [%clk 00:03:07]} 10. c4 {[%emt 00:00:22]
[%clk 00:02:26]} Qc7 {[%emt 00:00:11] [%clk 00:02:58]} 11. Kh1 {[%emt 00:00:03]
[%clk 00:02:24]} Be6 {[%emt 00:00:05] [%clk 00:02:55]} 12. Bg5 {[%emt 00:00:17]
[%clk 00:02:09]} Nbd7 {[%emt 00:00:01] [%clk 00:02:55]} 13. Nd2 {[%emt 00:00:12]
[%clk 00:01:59]} h6 {[%emt 00:00:02] [%clk 00:02:56]} 14. Bh4 {[%emt 00:00:02]
[%clk 00:01:59]} Rac8 {[%emt 00:00:17] [%clk 00:02:41]} 15. Rb1 {[%emt 00:00:03]
[%clk 00:01:59]} g5 {[%emt 00:00:09] [%clk 00:02:33]} 16. Bg3 {[%emt 00:00:02]
[%clk 00:01:58]} Nb6 {[%emt 00:00:14] [%clk 00:02:22]} 17. Qe2 {[%emt 00:00:24]
[%clk 00:01:36]} Nxc4 {[%emt 00:00:10] [%clk 00:02:14]} 18. Nxc4 {[%emt
00:00:05] [%clk 00:01:33]} Bxc4 {[%emt 00:00:01] [%clk 00:02:15]} 19. Bxc4
{[%emt 00:00:15] [%clk 00:01:20]} Qxc4 {[%emt 00:00:02] [%clk 00:02:15]} 20.
Qxc4 {[%emt 00:00:21] [%clk 00:01:02]} Rxc4 {[%emt 00:00:01] [%clk 00:02:16]}
21. f3 {[%emt 00:00:01] [%clk 00:01:03]} b5 {[%emt 00:00:24] [%clk 00:01:54]}
22. Rfd1 {[%emt 00:00:01] [%clk 00:01:04]} Ne8 {[%emt 00:00:09] [%clk 00:01:48]}
23. Rd2 {[%emt 00:00:28] [%clk 00:00:38]} f5 {[%emt 00:00:01] [%clk 00:01:48]}
24. exf5 {[%emt 00:00:03] [%clk 00:00:37]} Rxf5 {[%emt 00:00:01] [%clk
00:01:49]} 25. Rb3 {[%emt 00:00:09] [%clk 00:00:31]} Kf7 {[%emt 00:00:03] [%clk
00:01:47]} 26. Kg1 {[%emt 00:00:02] [%clk 00:00:30]} Ke6 {[%emt 00:00:02] [%clk
00:01:47]} 27. Ra3 {[%emt 00:00:04] [%clk 00:00:29]} Rc6 {[%emt 00:00:01] [%clk
00:01:48]} 28. Rb3 {[%emt 00:00:12] [%clk 00:00:19]} h5 {[%emt 00:00:10] [%clk
00:01:39]} 29. h4 {[%emt 00:00:04] [%clk 00:00:16]} Rc4 {[%emt 00:00:28] [%clk
00:01:12]} 30. Ra3 {[%emt 00:00:09] [%clk 00:00:10]} gxh4 {[%emt 00:00:05] [%clk
00:01:09]} 31. Bf2 {[%clk 00:00:11]} Nc7 {[%emt 00:00:06] [%clk 00:01:06]} 32.
Bb6 {[%emt 00:00:05] [%clk 00:00:08]} Nd5 {[%emt 00:00:01] [%clk 00:01:06]} 33.
Bf2 {[%emt 00:00:03] [%clk 00:00:07]} Nb4 {[%emt 00:00:15] [%clk 00:00:53]} 34.
c3 {[%emt 00:00:03] [%clk 00:00:06]} Nd5 {[%emt 00:00:08] [%clk 00:00:47]} 35.
Rxa6 {[%emt 00:00:02] [%clk 00:00:06]} h3 {[%emt 00:00:02] [%clk 00:00:47]} 36.
Ra5 {[%emt 00:00:04] [%clk 00:00:04]} Nxc3 {[%emt 00:00:03] [%clk 00:00:45]} 37.
Ra6 {[%emt 00:00:01] [%clk 00:00:05]} Nd5 {[%emt 00:00:01] [%clk 00:00:46]} 38.
Ra5 {[%emt 00:00:01] [%clk 00:00:06]} hxg2 {[%emt 00:00:18] [%clk 00:00:30]} 39.
Kxg2 {[%clk 00:00:07]} Nf4+ {[%emt 00:00:04] [%clk 00:00:29]} 40. Kh2 {[%emt
00:00:03] [%clk 00:00:06]} Rc3 {[%emt 00:00:08] [%clk 00:00:23]} 41. Rxb5 {[%emt
00:00:03] [%clk 00:00:05]} Rxf3 {[%emt 00:00:01] [%clk 00:00:24]} 42. Rb6 {[%emt
00:00:02] [%clk 00:00:05]} Nd5 {[%clk 00:00:25]} 43. Rb5 {[%emt 00:00:02] [%clk
00:00:06]} Rxf2+ {[%emt 00:00:01] [%clk 00:00:25]} 0-1

[Site "Europe Echecs"]

[Event "Championnat d'Europe de Blitz"]
[Date "2024.12.09"]
[White "Ribeiro, Rodrigo"]
[Black "Samunenkov, Ihor"]
[WhiteElo "2143"]
[BlackElo "2543"]
[Round "3.40"]
[Result "1/2-1/2"]
[TimeControl "180+2"]

1. d4 {[%emt 00:01:56] [%clk 00:03:04]} d5 {[%emt 00:00:01] [%clk 00:03:02]} 2.
c4 {[%clk 00:03:05]} e6 {[%emt 00:00:01] [%clk 00:03:03]} 3. Nf3 {[%clk
00:03:07]} Nf6 {[%emt 00:00:02] [%clk 00:03:03]} 4. Nc3 {[%clk 00:03:08]} a6
{[%emt 00:00:04] [%clk 00:03:01]} 5. cxd5 {[%emt 00:00:01] [%clk 00:03:09]} exd5
{[%emt 00:00:02] [%clk 00:03:01]} 6. Bg5 {[%emt 00:00:02] [%clk 00:03:09]} Be6
{[%emt 00:00:02] [%clk 00:03:01]} 7. e3 {[%emt 00:00:04] [%clk 00:03:08]} Nbd7
{[%emt 00:00:02] [%clk 00:03:01]} 8. Bd3 {[%emt 00:00:04] [%clk 00:03:06]} Bd6
{[%emt 00:00:02] [%clk 00:03:01]} 9. O-O {[%emt 00:00:02] [%clk 00:03:06]} c6
{[%emt 00:00:02] [%clk 00:03:01]} 10. Rb1 {[%emt 00:00:13] [%clk 00:02:55]} a5
{[%emt 00:00:03] [%clk 00:03:00]} 11. Qc2 {[%emt 00:00:12] [%clk 00:02:46]} Qb8
{[%emt 00:00:12] [%clk 00:02:50]} 12. Bh4 {[%emt 00:00:10] [%clk 00:02:37]} Bg4
{[%emt 00:00:06] [%clk 00:02:46]} 13. Bg3 {[%emt 00:00:12] [%clk 00:02:28]} Bxg3
{[%emt 00:00:03] [%clk 00:02:45]} 14. hxg3 {[%emt 00:00:01] [%clk 00:02:29]} O-O
{[%emt 00:00:17] [%clk 00:02:30]} 15. Na4 {[%emt 00:00:22] [%clk 00:02:10]} Re8
{[%emt 00:00:08] [%clk 00:02:24]} 16. Nc5 {[%emt 00:00:01] [%clk 00:02:11]} Nxc5
{[%emt 00:00:05] [%clk 00:02:21]} 17. Qxc5 {[%emt 00:00:01] [%clk 00:02:12]} Ne4
{[%emt 00:00:27] [%clk 00:01:55]} 18. Bxe4 {[%emt 00:00:12] [%clk 00:02:02]}
dxe4 {[%emt 00:00:08] [%clk 00:01:49]} 19. Ne5 {[%clk 00:02:03]} Be6 {[%emt
00:00:04] [%clk 00:01:47]} 20. b3 {[%emt 00:00:35] [%clk 00:01:29]} Qd8 {[%emt
00:00:09] [%clk 00:01:40]} 21. a3 {[%emt 00:00:05] [%clk 00:01:27]} h5 {[%emt
00:00:44] [%clk 00:00:58]} 22. b4 {[%emt 00:00:30] [%clk 00:01:00]} axb4 {[%emt
00:00:02] [%clk 00:00:58]} 23. Rxb4 {[%emt 00:00:17] [%clk 00:00:45]} Ra5 {[%emt
00:00:08] [%clk 00:00:52]} 24. Qb6 {[%emt 00:00:03] [%clk 00:00:44]} Qxb6 {[%emt
00:00:24] [%clk 00:00:30]} 25. Rxb6 {[%clk 00:00:45]} f6 {[%emt 00:00:02] [%clk
00:00:30]} 26. Ng6 {[%emt 00:00:06] [%clk 00:00:41]} Bc4 {[%emt 00:00:02] [%clk
00:00:31]} 27. Rc1 {[%emt 00:00:11] [%clk 00:00:32]} Ba6 {[%emt 00:00:03] [%clk
00:00:30]} 28. Rc3 {[%emt 00:00:05] [%clk 00:00:29]} Kh7 {[%emt 00:00:14] [%clk
00:00:18]} 29. Nf4 {[%clk 00:00:30]} Kh6 {[%emt 00:00:01] [%clk 00:00:19]} 30.
Rbb3 {[%emt 00:00:12] [%clk 00:00:20]} g5 {[%emt 00:00:02] [%clk 00:00:19]} 31.
Nh3 {[%emt 00:00:01] [%clk 00:00:21]} Kg6 {[%emt 00:00:02] [%clk 00:00:19]} 32.
f3 {[%emt 00:00:03] [%clk 00:00:21]} Bb5 {[%emt 00:00:06] [%clk 00:00:15]} 33.
Nf2 {[%emt 00:00:06] [%clk 00:00:17]} exf3 {[%emt 00:00:02] [%clk 00:00:14]} 34.
gxf3 {[%clk 00:00:18]} f5 {[%emt 00:00:04] [%clk 00:00:12]} 35. Nd3 {[%emt
00:00:02] [%clk 00:00:17]} Bxd3 {[%emt 00:00:03] [%clk 00:00:12]} 36. Rxd3
{[%clk 00:00:19]} Re7 {[%emt 00:00:02] [%clk 00:00:11]} 37. Kf2 {[%emt 00:00:01]
[%clk 00:00:19]} g4 {[%emt 00:00:04] [%clk 00:00:09]} 38. Rb6 {[%emt 00:00:09]
[%clk 00:00:13]} Kg7 {[%emt 00:00:04] [%clk 00:00:08]} 39. Rdb3 {[%emt 00:00:01]
[%clk 00:00:13]} Ra7 {[%emt 00:00:03] [%clk 00:00:07]} 40. a4 {[%emt 00:00:03]
[%clk 00:00:13]} Rxa4 {[%emt 00:00:03] [%clk 00:00:06]} 41. Rxb7 {[%clk
00:00:14]} Ra2+ {[%emt 00:00:01] [%clk 00:00:06]} 42. Rb2 {[%emt 00:00:05] [%clk
00:00:11]} Rxb7 {[%emt 00:00:02] [%clk 00:00:06]} 43. Rxa2 {[%clk 00:00:12]} Kf6
{[%emt 00:00:01] [%clk 00:00:07]} 44. Rc2 {[%emt 00:00:01] [%clk 00:00:13]} Rb6
{[%emt 00:00:02] [%clk 00:00:07]} 45. e4 {[%emt 00:00:02] [%clk 00:00:13]} fxe4
{[%emt 00:00:03] [%clk 00:00:06]} 46. fxe4 {[%clk 00:00:14]} Kg6 {[%emt
00:00:03] [%clk 00:00:05]} 47. Rc3 {[%emt 00:00:04] [%clk 00:00:12]} Kg5 {[%emt
00:00:03] [%clk 00:00:04]} 48. Ke3 {[%emt 00:00:01] [%clk 00:00:12]} Ra6 {[%clk
00:00:05]} 49. Rc5+ {[%emt 00:00:02] [%clk 00:00:13]} Kh6 {[%emt 00:00:01] [%clk
00:00:05]} 50. Kf4 {[%clk 00:00:14]} Rb6 {[%emt 00:00:03] [%clk 00:00:05]} 51.
Re5 {[%clk 00:00:15]} Rb4 {[%emt 00:00:04] [%clk 00:00:03]} 52. Re6+ {[%emt
00:00:03] [%clk 00:00:14]} Kg7 {[%clk 00:00:04]} 53. Rd6 {[%emt 00:00:01] [%clk
00:00:15]} Rc4 {[%emt 00:00:02] [%clk 00:00:04]} 54. Kg5 {[%emt 00:00:01] [%clk
00:00:16]} c5 {[%emt 00:00:02] [%clk 00:00:04]} 55. dxc5 {[%emt 00:00:06] [%clk
00:00:12]} Rxc5+ {[%emt 00:00:02] [%clk 00:00:04]} 56. Rd5 {[%emt 00:00:01]
[%clk 00:00:13]} Rc3 {[%emt 00:00:02] [%clk 00:00:04]} 57. Rd7+ {[%emt 00:00:02]
[%clk 00:00:13]} Kf8 {[%emt 00:00:02] [%clk 00:00:04]} 58. Kxh5 {[%emt 00:00:09]
[%clk 00:00:07]} Rxg3 {[%emt 00:00:02] [%clk 00:00:04]} 59. e5 {[%emt 00:00:04]
[%clk 00:00:05]} Re3 {[%emt 00:00:01] [%clk 00:00:05]} 60. Kxg4 {[%emt 00:00:02]
[%clk 00:00:04]} 1/2-1/2

[Site "Europe Echecs"]

[Event "Championnat d'Europe de Blitz"]
[Date "2024.12.09"]
[White "Grigoriants, Sergey"]
[Black "Goraj, Barbara"]
[WhiteElo "2542"]
[BlackElo "2178"]
[Round "3.41"]
[Result "1-0"]
[TimeControl "180+2"]

1. d4 {[%emt 00:00:02] [%clk 00:03:01]} d5 {[%emt 00:00:02] [%clk 00:03:02]} 2.
c4 {[%emt 00:00:04] [%clk 00:02:59]} e6 {[%emt 00:00:01] [%clk 00:03:03]} 3. Nc3
{[%emt 00:00:02] [%clk 00:03:00]} Nf6 {[%emt 00:00:02] [%clk 00:03:03]} 4. Nf3
{[%emt 00:00:10] [%clk 00:02:51]} c5 {[%emt 00:00:07] [%clk 00:02:59]} 5. cxd5
{[%emt 00:00:17] [%clk 00:02:36]} Nxd5 {[%emt 00:00:02] [%clk 00:02:59]} 6. e3
{[%emt 00:00:04] [%clk 00:02:34]} Nxc3 {[%emt 00:00:03] [%clk 00:02:57]} 7. bxc3
{[%emt 00:00:02] [%clk 00:02:34]} cxd4 {[%emt 00:00:02] [%clk 00:02:57]} 8. cxd4
{[%emt 00:00:06] [%clk 00:02:30]} Bb4+ {[%emt 00:00:08] [%clk 00:02:51]} 9. Bd2
{[%emt 00:00:02] [%clk 00:02:31]} Bxd2+ {[%emt 00:00:02] [%clk 00:02:51]} 10.
Qxd2 {[%emt 00:00:02] [%clk 00:02:31]} O-O {[%emt 00:00:03] [%clk 00:02:50]} 11.
Bd3 {[%emt 00:00:04] [%clk 00:02:28]} Nd7 {[%emt 00:00:19] [%clk 00:02:34]} 12.
O-O {[%emt 00:00:04] [%clk 00:02:26]} b6 {[%emt 00:00:20] [%clk 00:02:16]} 13.
Be4 {[%emt 00:00:18] [%clk 00:02:10]} Rb8 {[%emt 00:00:04] [%clk 00:02:14]} 14.
Rfc1 {[%emt 00:00:02] [%clk 00:02:10]} Nf6 {[%emt 00:00:17] [%clk 00:01:59]} 15.
Bc6 {[%emt 00:00:05] [%clk 00:02:06]} Bb7 {[%emt 00:00:08] [%clk 00:01:53]} 16.
Ne5 {[%emt 00:00:02] [%clk 00:02:06]} Qd6 {[%emt 00:00:20] [%clk 00:01:36]} 17.
h3 {[%emt 00:00:20] [%clk 00:01:47]} Rfd8 {[%emt 00:00:06] [%clk 00:01:32]} 18.
Qe2 {[%emt 00:00:18] [%clk 00:01:32]} Nd5 {[%emt 00:00:28] [%clk 00:01:06]} 19.
Qh5 {[%emt 00:00:43] [%clk 00:00:50]} g6 {[%emt 00:00:17] [%clk 00:00:51]} 20.
Qf3 {[%emt 00:00:10] [%clk 00:00:42]} f5 {[%emt 00:00:26] [%clk 00:00:27]} 21.
Bxb7 {[%emt 00:00:11] [%clk 00:00:33]} Rxb7 {[%emt 00:00:02] [%clk 00:00:27]}
22. Rc6 {[%emt 00:00:02] [%clk 00:00:34]} Qe7 {[%emt 00:00:05] [%clk 00:00:23]}
23. Rac1 {[%emt 00:00:01] [%clk 00:00:35]} b5 {[%emt 00:00:14] [%clk 00:00:11]}
24. Ra6 {[%emt 00:00:10] [%clk 00:00:26]} Qe8 {[%emt 00:00:08] [%clk 00:00:06]}
25. h4 {[%emt 00:00:09] [%clk 00:00:19]} Rc8 {[%clk 00:00:07]} 26. Rac6 {[%emt
00:00:13] [%clk 00:00:08]} Rxc6 {[%emt 00:00:02] [%clk 00:00:06]} 27. Rxc6
{[%emt 00:00:01] [%clk 00:00:09]} Rc7 {[%emt 00:00:03] [%clk 00:00:05]} 28. Rxc7
{[%emt 00:00:03] [%clk 00:00:08]} Nxc7 {[%clk 00:00:06]} 29. Qb7 {[%emt
00:00:01] [%clk 00:00:09]} Qd8 {[%emt 00:00:05] [%clk 00:00:04]} 30. Qxa7 {[%emt
00:00:02] [%clk 00:00:08]} Qd6 {[%emt 00:00:03] [%clk 00:00:03]} 31. Qb8+ {[%emt
00:00:04] [%clk 00:00:07]} Kg7 {[%clk 00:00:04]} 32. Qb7 {[%emt 00:00:02] [%clk
00:00:07]} Kf6 {[%emt 00:00:03] [%clk 00:00:03]} 33. Qa7 {[%emt 00:00:03] [%clk
00:00:05]} b4 {[%emt 00:00:01] [%clk 00:00:04]} 34. Qb8 {[%emt 00:00:01] [%clk
00:00:06]} Kg7 {[%emt 00:00:02] [%clk 00:00:04]} 35. Qc8 {[%emt 00:00:02] [%clk
00:00:06]} Nd5 {[%emt 00:00:02] [%clk 00:00:04]} 36. Qb7+ {[%emt 00:00:02] [%clk
00:00:06]} Nc7 {[%emt 00:00:02] [%clk 00:00:04]} 37. Nd3 {[%emt 00:00:02] [%clk
00:00:06]} Kf6 {[%emt 00:00:03] [%clk 00:00:04]} 38. Qxb4 {[%emt 00:00:01] [%clk
00:00:06]} Qd8 {[%emt 00:00:03] [%clk 00:00:03]} 39. Nc5 {[%emt 00:00:03] [%clk
00:00:05]} Qa8 {[%emt 00:00:03]} 40. Qb3 {[%emt 00:00:02] [%clk 00:00:04]} Nd5
{[%emt 00:00:01] [%clk 00:00:04]} 41. Nd7+ {[%emt 00:00:01] [%clk 00:00:05]} Ke7
{[%emt 00:00:02] [%clk 00:00:04]} 42. Ne5 {[%clk 00:00:06]} Qa5 {[%emt 00:00:01]
[%clk 00:00:05]} 43. Qb7+ {[%emt 00:00:03] [%clk 00:00:05]} Nc7 {[%emt 00:00:01]
[%clk 00:00:05]} 44. Kh2 {[%clk 00:00:06]} Kd6 {[%emt 00:00:04] [%clk 00:00:04]}
45. Qc6+ {[%emt 00:00:01] [%clk 00:00:06]} Ke7 {[%emt 00:00:01] [%clk 00:00:05]}
46. Qd7+ {[%clk 00:00:08]} Kf8 {[%emt 00:00:01] [%clk 00:00:06]} 47. Qf7# {[%emt
00:00:01] [%clk 00:00:05]} 1-0

[Site "Europe Echecs"]

[Event "Championnat d'Europe de Blitz"]
[Date "2024.12.09"]
[White "Afonso, Joao Pedro"]
[Black "Navara, David"]
[WhiteElo "2112"]
[BlackElo "2665"]
[Round "3.42"]
[Result "0-1"]
[TimeControl "180+2"]

1. e4 {[%clk 00:03:02]} c5 {[%emt 00:00:02] [%clk 00:03:04]} 2. Nf3 {[%emt
00:00:02] [%clk 00:03:03]} d6 {[%clk 00:03:04]} 3. c3 {[%emt 00:00:01] [%clk
00:03:03]} Nf6 {[%emt 00:00:01] [%clk 00:03:05]} 4. h3 {[%emt 00:00:01] [%clk
00:03:03]} Nc6 {[%emt 00:00:03] [%clk 00:03:04]} 5. d4 {[%emt 00:00:16] [%clk
00:02:49]} cxd4 {[%emt 00:00:05] [%clk 00:03:02]} 6. cxd4 {[%clk 00:02:50]} Nxe4
{[%emt 00:00:04] [%clk 00:03:00]} 7. d5 {[%emt 00:00:01] [%clk 00:02:51]} Qa5+
{[%emt 00:00:02] [%clk 00:03:00]} 8. Nc3 {[%emt 00:00:01] [%clk 00:02:51]} Nxc3
{[%emt 00:00:06] [%clk 00:02:57]} 9. bxc3 {[%emt 00:00:01] [%clk 00:02:52]} Ne5
{[%emt 00:00:07] [%clk 00:02:52]} 10. Nxe5 {[%emt 00:00:04] [%clk 00:02:50]}
Qxc3+ {[%emt 00:00:46] [%clk 00:02:09]} 11. Bd2 {[%clk 00:02:51]} Qxe5+ {[%emt
00:00:02] [%clk 00:02:09]} 12. Be2 {[%clk 00:02:52]} Qxd5 {[%emt 00:00:37] [%clk
00:01:34]} 13. O-O {[%emt 00:00:06] [%clk 00:02:48]} e5 {[%emt 00:00:35] [%clk
00:01:01]} 14. Bf3 {[%emt 00:00:18] [%clk 00:02:32]} Qe6 {[%emt 00:00:20] [%clk
00:00:43]} 15. Rb1 {[%emt 00:01:37] [%clk 00:00:57]} Be7 {[%emt 00:00:01] [%clk
00:00:44]} 16. Bxb7 {[%emt 00:00:30] [%clk 00:00:29]} Bxb7 {[%emt 00:00:02]
[%clk 00:00:44]} 17. Rxb7 {[%emt 00:00:02] [%clk 00:00:30]} O-O {[%emt 00:00:03]
[%clk 00:00:43]} 18. Qa4 {[%emt 00:00:02] [%clk 00:00:30]} d5 {[%emt 00:00:17]
[%clk 00:00:28]} 19. Qd7 {[%emt 00:00:19] [%clk 00:00:12]} Bc5 {[%emt 00:00:03]
[%clk 00:00:27]} 20. Rc1 {[%emt 00:00:04] [%clk 00:00:10]} Bb6 {[%emt 00:00:04]
[%clk 00:00:26]} 21. Bb4 {[%emt 00:00:06] [%clk 00:00:06]} Qxd7 {[%emt 00:00:07]
[%clk 00:00:21]} 22. Rxd7 {[%emt 00:00:01] [%clk 00:00:06]} Rfd8 {[%clk
00:00:22]} 23. Re7 {[%emt 00:00:02] [%clk 00:00:06]} Re8 {[%emt 00:00:01] [%clk
00:00:23]} 24. Rd7 {[%emt 00:00:03] [%clk 00:00:05]} Rad8 {[%emt 00:00:03] [%clk
00:00:22]} 25. Rxd8 {[%emt 00:00:02] [%clk 00:00:05]} Rxd8 {[%emt 00:00:03]
[%clk 00:00:21]} 26. Kf1 {[%emt 00:00:01] [%clk 00:00:05]} f6 {[%emt 00:00:02]
[%clk 00:00:22]} 27. Ke2 {[%emt 00:00:01] [%clk 00:00:06]} Kf7 {[%clk 00:00:23]}
28. a4 {[%emt 00:00:02] [%clk 00:00:06]} Ke6 {[%emt 00:00:09] [%clk 00:00:16]}
29. a5 {[%emt 00:00:02] [%clk 00:00:07]} Bd4 {[%clk 00:00:17]} 30. Rc6+ {[%emt
00:00:03] [%clk 00:00:06]} Kd7 {[%emt 00:00:02] [%clk 00:00:17]} 31. Rd6+ {[%emt
00:00:03] [%clk 00:00:05]} Kc7 {[%emt 00:00:04] [%clk 00:00:15]} 32. Re6 {[%emt
00:00:02] [%clk 00:00:06]} Rd7 {[%emt 00:00:04] [%clk 00:00:13]} 33. f3 {[%emt
00:00:02] [%clk 00:00:05]} h5 {[%emt 00:00:08] [%clk 00:00:08]} 34. Kd3 {[%emt
00:00:02] [%clk 00:00:06]} Kb7 {[%emt 00:00:03] [%clk 00:00:07]} 35. a6+ {[%emt
00:00:02] [%clk 00:00:06]} Kc7 {[%emt 00:00:04] [%clk 00:00:05]} 36. Ba5+ {[%emt
00:00:01] [%clk 00:00:06]} Bb6 {[%emt 00:00:03] [%clk 00:00:05]} 37. Bb4 {[%clk
00:00:07]} h4 {[%emt 00:00:03] [%clk 00:00:04]} 38. Re8 {[%emt 00:00:02] [%clk
00:00:06]} Kc6 {[%emt 00:00:01] [%clk 00:00:05]} 39. Bf8 {[%emt 00:00:03] [%clk
00:00:05]} Kb5 {[%emt 00:00:02] [%clk 00:00:06]} 40. Re7 {[%emt 00:00:02] [%clk
00:00:04]} Rxe7 {[%emt 00:00:01] [%clk 00:00:07]} 41. Bxe7 {[%clk 00:00:05]} f5
{[%emt 00:00:01] [%clk 00:00:08]} 42. Bf8 {[%emt 00:00:02] [%clk 00:00:05]} e4+
{[%emt 00:00:01] [%clk 00:00:09]} 43. fxe4 {[%emt 00:00:01] [%clk 00:00:06]}
fxe4+ {[%emt 00:00:01] [%clk 00:00:10]} 44. Ke2 {[%emt 00:00:02] [%clk
00:00:06]} g6 {[%clk 00:00:11]} 45. Be7 {[%emt 00:00:02] [%clk 00:00:07]} d4
{[%emt 00:00:02] [%clk 00:00:11]} 46. Bxh4 {[%emt 00:00:02] [%clk 00:00:07]} d3+
{[%emt 00:00:02] [%clk 00:00:12]} 47. Kd1 {[%emt 00:00:01] [%clk 00:00:07]} e3
{[%emt 00:00:01] [%clk 00:00:13]} 48. Be1 {[%emt 00:00:04] [%clk 00:00:05]} Kxa6
{[%emt 00:00:03] [%clk 00:00:12]} 49. g4 {[%clk 00:00:06]} g5 {[%emt 00:00:05]
[%clk 00:00:09]} 50. h4 {[%clk 00:00:07]} gxh4 {[%emt 00:00:06] [%clk 00:00:05]}
51. Bxh4 {[%clk 00:00:08]} Ba5 {[%emt 00:00:02] [%clk 00:00:06]} 52. g5 {[%emt
00:00:05] [%clk 00:00:04]} e2+ {[%emt 00:00:01] [%clk 00:00:07]} 53. Kc1 {[%emt
00:00:03] [%clk 00:00:03]} d2+ {[%clk 00:00:08]} 0-1

[Site "Europe Echecs"]